bitfinex/quotes_ETHUSD_20241022
["timestamp","ask_amount","ask_price","bid_price","bid_amount"]
[1729612349956,0.04706631,2623.5,2623.3,4.36191]
[1729612350161,0.04706631,2623.5,2623.3,8.1738]
[1729612350375,0.04706631,2623.5,2623.4,0.85626414]
[1729612351887,0.04706631,2623.5,2623.4,5.29433406]
[1729612352046,0.7698,2623.8,2623.4,1.40626414]
[1729612352246,0.04737149,2623.7,2623.4,1.40626414]
[1729612355581,0.04737149,2623.7,2623.3,0.55]
[1729612355900,0.04737149,2623.7,2623.3,4.36192]
[1729612356274,0.04737149,2623.7,2623.3,0.55]
[1729612358318,0.04737149,2623.7,2623.2,0.38884137]
[1729612358486,3.81141,2623.7,2623.2,0.38884137]
[1729612358819,0.04727216,2623.6,2623.2,0.38884137]
[1729612359173,0.04727216,2623.6,2623.2,0.46507827]
[1729612359378,3.81142,2623.7,2623.2,0.38884137]
[1729612359602,0.04731728,2623.5,2623.2,0.38884137]
[1729612359779,0.04739795,2623.6,2623.2,0.38884137]
[1729612360110,0.04715422,2623.5,2623.2,4.20096137]
[1729612360806,8.39247,2623.8,2623.2,4.20096137]
[1729612360969,0.04700127,2623.4,2623.2,3.81212]
[1729612361170,4.58108,2623.8,2623.2,3.81212]
[1729612361412,0.04687976,2623.3,2623.2,3.81212]
[1729612361577,4.58108,2623.8,2623.2,3.81212]
[1729612361779,0.04687976,2623.3,2623.2,3.81212]
[1729612362182,4.58108,2623.8,2623.2,3.81212]
[1729612362531,5.41236559,2623.8,2623.2,3.81212]
[1729612362684,0.0472025,2623.7,2623.3,4.36198]
[1729612364125,0.0472025,2623.7,2623.3,0.55]
[1729612365929,4.59642,2623.5,2623.0,0.55]
[1729612366425,0.04697318,2623.4,2623.0,0.55]
[1729612370519,0.04697318,2623.4,2623.0,4.36241]
[1729612370723,0.04697318,2623.4,2623.0,7.152899]
[1729612371094,0.04697318,2623.4,2623.0,0.55]
[1729612371836,0.04697318,2623.4,2622.8,19.73]
[1729612371837,0.7834,2623.3,2622.8,23.54271]
[1729612372026,0.7834,2623.3,2622.9,3.81254]
[1729612372229,0.04660734,2623.2,2622.9,3.81254]
[1729612372409,0.7834,2623.3,2622.8,19.73]
[1729612372610,0.7834,2623.3,2622.8,23.54269]
[1729612372931,0.04664817,2623.2,2622.8,23.54269]
[1729612373140,0.7834,2623.3,2622.8,23.54269]
[1729612373321,0.04656746,2623.1,2622.8,3.81269]
[1729612373637,0.7834,2623.3,2622.8,3.81269]
[1729612373824,0.04648674,2623.0,2622.8,3.81269]
[1729612374143,0.04640602,2622.9,2622.8,4.36269]
[1729612374326,0.7834,2623.3,2622.8,4.36269]
[1729612374641,0.04640602,2622.9,2622.8,4.36269]
[1729612374798,4.59546,2623.3,2622.6,3.79483004]
[1729612375137,0.7834,2623.3,2622.7,0.62624791]
[1729612375296,0.04664817,2623.2,2622.7,0.62624741]
[1729612375496,0.04664817,2623.2,2622.7,1.42107788]
[1729612375723,0.7834,2623.3,2622.7,3.0746633]
[1729612375919,0.04664817,2623.2,2622.7,3.0746633]
[1729612377341,0.8011,2623.5,2622.8,0.79483004]
[1729612377564,0.8011,2623.5,2622.9,0.55]
[1729612377753,0.7891,2623.9,2623.0,3.88858404]
[1729612377898,0.7891,2623.9,2623.3,0.55]
[1729612377899,4.60022,2623.9,2623.3,0.55]
[1729612378103,3.81129,2623.8,2623.3,4.36198]
[1729612378601,0.7764,2623.7,2623.3,4.36198]
[1729612382452,0.7764,2623.7,2623.1,19.73]
[1729612382618,4.58794,2623.7,2623.1,24.33704004]
[1729612382821,4.58794,2623.7,2623.1,23.54221]
[1729612383523,0.7764,2623.7,2623.2,3.81201]
[1729612383848,0.04693193,2623.6,2623.2,3.81201]
[1729612384022,0.04693193,2623.6,2623.1,27.27127255]
[1729612384363,1.72204667,2623.6,2623.1,27.27127255]
[1729612384520,1.72204667,2623.6,2623.2,0.79483004]
[1729612385539,3.85855193,2623.6,2623.2,0.79483004]
[1729612385731,5.53366667,2623.6,2623.2,0.79483004]
[1729612386060,9.34529667,2623.6,2623.2,0.79483004]
[1729612386222,5.53366667,2623.6,2623.2,0.79483004]
[1729612387669,0.7512,2623.4,2623.2,0.79483004]
[1729612388024,0.0465805,2623.3,2623.1,20.52483004]
[1729612388356,0.0465805,2623.3,2623.2,3.81213]
[1729612388655,0.0465805,2623.3,2623.2,0.79483004]
[1729612389860,0.7512,2623.4,2623.2,0.79483004]
[1729612390224,0.04664406,2623.3,2623.2,0.79483004]
[1729612394403,3.49233224,2623.3,2623.2,0.79483004]
[1729612394596,6.67586636,2623.3,2623.1,0.79483004]
[1729612394802,4.64704406,2623.3,2623.1,0.79483004]
[1729612395092,6.3221588,2623.3,2623.1,0.79483004]
[1729612395505,2.43981474,2623.2,2623.1,0.79483004]
[1729612395799,4.57698,2623.1,2623.0,0.79483004]
[1729612396002,6.25209474,2623.1,2623.0,0.79483004]
[1729612396168,6.29849403,2623.1,2623.0,0.79483004]
[1729612396368,7.33529487,2623.1,2623.0,0.79483004]
[1729612397897,4.56642,2623.0,2622.9,0.79483004]
[1729612398206,6.24153474,2623.0,2622.9,0.79483004]
[1729612398759,6.28599525,2623.0,2622.9,0.79483004]
[1729612401778,0.79846051,2623.0,2622.9,0.79483004]
[1729612401991,0.79846051,2623.0,2622.8,1.19224506]
[1729612402191,6.28604525,2623.0,2622.8,1.19224506]
[1729612402416,6.28604525,2623.0,2622.9,0.79971952]
[1729612402777,4.61093051,2623.0,2622.9,0.79971952]
[1729612403409,6.28604525,2623.0,2622.9,0.79971952]
[1729612403713,0.79846051,2623.0,2622.9,0.79971952]
[1729612404514,0.79846051,2623.0,2622.8,1.19224506]
[1729612406107,6.28602525,2623.0,2622.8,1.19224506]
[1729612406426,6.28602525,2623.0,2622.9,0.79964474]
[1729612406591,4.61091051,2623.0,2622.8,1.19224506]
[1729612406786,0.79846051,2623.0,2622.8,1.19224506]
[1729612407526,2.47357525,2623.0,2622.9,0.79965216]
[1729612407692,6.28599525,2623.0,2622.9,0.79965216]
[1729612409089,2.47357525,2623.0,2622.9,0.79965216]
[1729612409290,6.28599525,2623.0,2622.9,0.79965216]
[1729612409705,0.79846051,2623.0,2622.9,0.79965216]
[1729612410203,2.47357525,2623.0,2622.9,0.79965216]
[1729612410522,6.28599525,2623.0,2622.9,0.79965216]
[1729612410731,7.29581278,2623.0,2622.9,0.79965216]
[1729612411039,7.29581278,2623.0,2622.9,0.60475216]
[1729612411531,3.81262,2622.9,2622.7,1.19224506]
[1729612411690,1.67511474,2622.9,2622.7,1.19224506]
[1729612412090,0.04448758,2622.8,2622.7,1.19224506]
[1729612412525,6.24153474,2623.0,2622.7,1.19224506]
[1729612412726,0.04436507,2622.8,2622.7,1.19224506]
[1729612412927,6.24153474,2623.0,2622.7,1.19224506]
[1729612413096,0.0444816,2622.8,2622.7,1.19224506]
[1729612413293,1.67511474,2622.9,2622.7,1.19224506]
[1729612413528,0.04441866,2622.8,2622.7,1.19224506]
[1729612413830,0.801,2623.2,2622.7,3.28523797]
[1729612414036,0.801,2623.2,2622.8,1.19224506]
[1729612414205,2.47611474,2623.2,2622.8,1.19224506]
[1729612414409,0.04450347,2623.1,2622.8,1.19224506]
[1729612414936,1.67511474,2623.0,2622.8,1.19224506]
[1729612415109,5.53190821,2623.1,2622.8,1.19224506]
[1729612415294,0.04315319,2622.9,2622.8,1.19224506]
[1729612415625,0.04321613,2622.9,2622.8,1.19224506]
[1729612415805,5.48740474,2623.1,2622.8,1.19224506]
[1729612416000,0.04334202,2622.9,2622.8,1.19224506]
[1729612416327,1.67511474,2623.0,2622.7,1.19224506]
[1729612416487,0.04334202,2622.9,2622.7,1.19224506]
[1729612417516,0.04334202,2622.9,2622.7,5.00508506]
[1729612417831,0.801,2623.2,2622.7,1.19224506]
[1729612417832,6.28825474,2623.2,2622.7,1.19224506]
[1729612418030,1.67511474,2623.1,2622.7,1.19224506]
[1729612418227,1.71849231,2623.1,2622.7,1.19224506]
[1729612419735,1.71849231,2623.1,2622.7,5.00510506]
[1729612419893,0.04337757,2623.1,2622.8,1.19224506]
[1729612420290,0.801,2623.2,2622.8,5.00495506]
[1729612420506,2.47611474,2623.2,2622.8,1.19224506]
[1729612420702,0.04339625,2623.1,2622.8,1.19224506]
[1729612420916,0.04339625,2623.1,2622.9,0.79955117]
[1729612420917,0.8298,2623.0,2622.9,0.79955117]
[1729612421318,0.87311554,2623.0,2622.9,0.79955117]
[1729612421534,0.87311554,2623.0,2622.8,0.79955117]
[1729612422102,0.04331554,2623.0,2622.8,0.79955117]
[1729612422310,0.04331554,2623.0,2622.9,0.79955117]
[1729612422624,0.04334701,2623.0,2622.9,0.79955117]
[1729612422800,0.8083,2623.2,2622.9,0.79955117]
[1729612422995,0.04188898,2623.0,2622.9,0.79955117]
[1729612423216,2.48341474,2623.2,2622.9,0.79955117]
[1729612423431,0.04185751,2623.0,2622.9,0.79955117]
[1729612423630,0.8083,2623.2,2622.9,0.79955117]
[1729612423926,0.04185751,2623.0,2622.9,0.79955117]
[1729612424129,6.29555474,2623.2,2622.9,0.79955117]
[1729612424303,0.04188898,2623.0,2622.9,0.79955117]
[1729612424505,6.29555474,2623.2,2622.9,0.79955117]
[1729612424705,6.35532372,2623.0,2622.9,0.79955117]
[1729612424910,3.81257,2622.9,2622.7,0.79955117]
[1729612425138,5.48768474,2622.9,2622.7,0.79955117]
[1729612425328,0.04172753,2622.8,2622.7,0.79955117]
[1729612426323,1.71684227,2622.8,2622.7,0.79955117]
[1729612426515,0.04172753,2622.8,2622.7,0.79955117]
[1729612426711,1.71684227,2622.8,2622.7,0.79955117]
[1729612426929,0.04172753,2622.8,2622.7,0.79955117]
[1729612427503,0.04172753,2622.8,2622.6,1.19224506]
[1729612428001,1.71684227,2622.8,2622.6,1.19224506]
[1729612428340,5.52962227,2622.8,2622.6,1.19224506]
[1729612428729,5.52962227,2622.8,2622.7,0.79963226]
[1729612428903,5.52962227,2622.8,2622.5,1.58966008]
[1729612428904,5.52962227,2622.8,2622.4,19.73]
[1729612429244,5.52962227,2622.8,2622.3,0.55]
[1729612429605,5.52962227,2622.8,2622.3,1.34986944]
[1729612431137,0.04172753,2622.8,2622.4,1.67511474]
[1729612431342,0.04172753,2622.8,2622.4,0.79986944]
[1729612431544,3.85444753,2622.8,2622.4,0.79986944]
[1729612431853,0.0416468,2622.7,2622.4,0.79986944]
[1729612432223,5.48770474,2622.9,2622.4,0.79986944]
[1729612432554,0.04156606,2622.6,2622.4,1.78750629]
[1729612432710,3.81234,2623.1,2622.5,2.95117564]
[1729612432911,0.8314,2623.4,2622.7,1.34939281]
[1729612433112,0.04153907,2623.0,2622.9,0.55]
[1729612433408,0.04153907,2623.0,2622.9,1.74980417]
[1729612433409,0.04148864,2623.0,2622.9,1.74980417]
[1729612433638,4.64325,2623.4,2622.9,1.74980417]
[1729612433842,4.64325,2623.4,2623.0,0.79935102]
[1729612434037,0.04181876,2623.3,2623.0,0.79935102]
[1729612435025,0.7642,2623.6,2623.1,3.88851244]
[1729612435227,0.04184139,2623.2,2623.1,5.23779346]
[1729612435424,0.7642,2623.6,2623.1,5.23779346]
[1729612435660,0.7642,2623.6,2623.1,5.16155102]
[1729612435827,0.04216271,2623.5,2623.2,0.07623522]
[1729612436150,0.04216271,2623.5,2623.3,5.16133102]
[1729612436356,5.05974939,2623.9,2623.3,5.23756192]
[1729612436357,8.87097939,2623.9,2623.3,5.23756192]
[1729612436712,0.04240477,2623.8,2623.3,5.16133102]
[1729612436924,0.04240477,2623.8,2623.3,5.23756132]
[1729612437220,0.04240477,2623.8,2623.4,3.81184]
[1729612438468,0.04240477,2623.8,2623.4,4.61119102]
[1729612438617,0.04240477,2623.8,2623.5,4.36159]
[1729612438816,0.04240477,2623.8,2623.5,5.16094102]
[1729612439019,4.59511,2624.1,2623.5,5.16094102]
[1729612439256,0.0424848,2623.7,2623.5,5.16094102]
[1729612439427,4.59511,2624.1,2623.5,8.04459355]
[1729612439628,4.59511,2624.1,2623.6,3.81155]
[1729612439821,0.04272682,2624.0,2623.6,3.81155]
[1729612440017,0.7842,2624.1,2623.6,3.81155]
[1729612440358,0.04264615,2623.9,2623.5,4.23300355]
[1729612440542,0.7842,2624.1,2623.6,4.73598177]
[1729612440741,0.04256548,2623.8,2623.6,4.73598177]
[1729612440942,0.7842,2624.1,2623.6,4.73598177]
[1729612441127,4.59504,2624.1,2623.6,4.73598177]
[1729612441330,0.04272682,2624.0,2623.6,5.53533279]
[1729612441640,0.04272682,2624.0,2623.6,4.73598177]
[1729612441842,0.04272682,2624.0,2623.7,0.97311922]
[1729612442025,0.04272682,2624.0,2623.8,0.62621858]
[1729612442225,4.56541,2624.3,2623.8,4.43747639]
[1729612442426,0.04271338,2623.9,2623.8,4.36126]
[1729612442645,4.56541,2624.3,2623.8,4.36126]
[1729612442863,0.7548,2624.3,2623.8,4.36126]
[1729612443016,0.04297655,2624.2,2623.8,4.36126]
[1729612443220,0.04297655,2624.2,2623.8,0.55]
[1729612443419,3.8107,2624.2,2623.7,0.55]
[1729612443729,0.0428959,2624.1,2623.7,0.55]
[1729612445541,0.0428959,2624.1,2623.8,3.4790414]
[1729612445755,0.0428959,2624.1,2623.9,0.55]
[1729612445922,0.7632,2624.8,2624.1,0.55]
[1729612446276,0.04129615,2624.7,2624.0,1.34935102]
[1729612447139,0.04129615,2624.7,2624.0,4.34935102]
[1729612447341,4.58533,2625.0,2624.2,0.55]
[1729612447562,3.80967,2624.9,2624.2,0.55]
[1729612447869,3.80967,2624.9,2624.4,0.55]
[1729612447870,0.04150222,2624.9,2624.4,0.55]
[1729612448172,0.04150222,2624.9,2624.6,0.55]
[1729612448347,0.04150222,2624.9,2624.4,0.55]
[1729612448668,0.04150222,2624.9,2624.4,2.6579351]
[1729612449371,0.04150222,2624.9,2624.6,0.55]
[1729612450579,0.04150222,2624.9,2624.6,4.36008]
[1729612451235,0.04150222,2624.9,2624.5,4.36023]
[1729612453233,0.04150222,2624.9,2624.6,3.81004]
[1729612454271,0.04150222,2624.9,2624.6,3.88623246]
[1729612454454,0.04150222,2624.9,2624.6,3.81004]
[1729612456277,0.04150222,2624.9,2624.7,3.80994]
[1729612456484,0.04150222,2624.9,2624.7,0.55]
[1729612456690,4.60079,2625.2,2624.7,0.55]
[1729612456893,0.04189962,2624.8,2624.7,0.55]
[1729612457406,4.60079,2625.2,2624.7,0.55]
[1729612457750,0.04214146,2625.1,2624.7,0.55]
[1729612459464,0.8259,2625.0,2624.5,19.73]
[1729612459689,3.80968,2624.9,2624.5,19.73]
[1729612459905,3.80968,2624.9,2624.8,3.80981]
[1729612459906,0.04198024,2624.9,2624.8,3.80981]
[1729612460081,0.04198024,2624.9,2624.8,3.88599351]
[1729612460281,0.8259,2625.6,2625.3,3.80905]
[1729612460481,0.01,2626.3,2625.6,3.80864]
[1729612460482,0.8259,2625.8,2625.6,3.80864]
[1729612460698,4.63404,2626.0,2625.5,3.80878]
[1729612460899,0.04129405,2625.7,2625.3,3.80902]
[1729612461108,3.80851,2625.7,2625.2,3.8092]
[1729612461261,0.86711348,2625.6,2625.2,3.8092]
[1729612461474,4.67583348,2625.6,2625.1,3.80932]
[1729612461788,4.67583348,2625.6,2625.2,0.62617572]
[1729612462116,4.67583348,2625.6,2625.1,3.80932]
[1729612462117,5.52426783,2625.6,2625.1,3.80932]
[1729612462317,5.52426783,2625.6,2624.9,19.73]
[1729612462318,1.71554783,2625.6,2624.9,19.73]
[1729612462620,3.80886,2625.5,2625.0,0.55]
[1729612462919,5.52420783,2625.6,2625.1,3.80929]
[1729612463088,0.04105232,2625.4,2625.0,4.43556152]
[1729612463286,0.0411329,2625.5,2625.2,3.80923]
[1729612463587,0.8259,2625.6,2625.1,3.80936]
[1729612463588,4.63462,2625.6,2625.1,3.80936]
[1729612463901,0.0411329,2625.5,2625.1,3.80931]
[1729612464102,0.0411329,2625.5,2625.1,7.61859]
[1729612464289,0.0411329,2625.5,2625.1,7.69476805]
[1729612464694,0.0411329,2625.5,2625.1,7.61859]
[1729612464893,0.0411329,2625.5,2625.1,3.80928]
[1729612465094,0.0411329,2625.5,2625.1,7.61858]
[1729612465508,0.0411329,2625.5,2625.2,3.80919]
[1729612466414,3.8499529,2625.5,2625.0,4.35939]
[1729612466621,0.796,2625.2,2624.8,3.8098]
[1729612466778,0.796,2625.2,2624.9,3.8096]
[1729612467123,0.04016387,2625.1,2624.9,3.8096]
[1729612468113,0.796,2625.2,2625.0,3.80951]
[1729612468415,0.04035077,2625.1,2625.0,3.80951]
[1729612468775,0.796,2625.2,2625.0,3.80951]
[1729612468987,0.796,2625.2,2624.9,3.80964]
[1729612469189,0.04035077,2625.1,2624.9,3.80964]
[1729612469385,0.04035077,2625.1,2625.0,3.80952]
[1729612470028,0.04035077,2625.1,2624.9,3.80965]
[1729612470336,0.04035077,2625.1,2624.8,0.55]
[1729612470530,0.04035077,2625.1,2624.9,3.88575502]
[1729612470731,0.04035077,2625.1,2624.9,3.80957]
[1729612470930,0.04035077,2625.1,2624.9,3.88575503]
[1729612471291,0.04035077,2625.1,2624.9,3.80957]
[1729612473836,0.04035077,2625.1,2624.9,3.88575507]
[1729612474030,0.04035077,2625.1,2625.0,3.80952]
[1729612474324,0.04035077,2625.1,2624.9,3.80957]
[1729612476340,0.04035077,2625.1,2624.9,3.88575509]
[1729612476494,0.04035077,2625.1,2624.9,3.80957]
[1729612476833,0.796,2625.2,2624.9,3.80957]
[1729612478533,0.04035077,2625.1,2624.9,3.80957]
[1729612479035,7.65925077,2625.1,2624.6,19.73]
[1729612479193,0.8131,2624.9,2624.5,3.81016]
[1729612479634,0.04009023,2624.8,2624.5,3.81016]
[1729612480194,0.04009023,2624.8,2624.7,1.67288809]
[1729612480393,4.62244,2625.2,2624.7,1.67288809]
[1729612480635,0.04044796,2625.1,2624.8,1.67288809]
[1729612480834,0.04044796,2625.1,2624.9,1.67288809]
[1729612481117,0.04044796,2625.1,2624.8,1.67288809]
[1729612484010,5.63289381,2625.2,2624.8,1.67288809]
[1729612485225,0.03902344,2625.1,2624.8,1.67288809]
[1729612489515,0.03902344,2625.1,2625.0,1.67288809]
[1729612489719,0.03902344,2625.1,2625.0,3.09842452]
[1729612489941,4.61956,2625.7,2625.0,3.09842452]
[1729612490144,3.80868,2625.6,2625.1,1.67288809]
[1729612490454,0.03937031,2625.6,2625.1,1.67288809]
[1729612490660,0.03937031,2625.6,2625.2,1.67288809]
[1729612490834,0.03937031,2625.6,2625.1,2.89444344]
[1729612491031,0.03937031,2625.6,2625.2,1.67288809]
[1729612491237,0.03937031,2625.6,2625.2,2.47223911]
[1729612491551,0.03937031,2625.6,2625.4,1.67288809]
[1729612491758,0.03937031,2625.6,2625.5,1.67288809]
[1729612491918,0.7751,2625.9,2625.5,5.48160809]
[1729612492119,0.03675849,2625.6,2625.5,3.80872]
[1729612492361,0.7751,2625.9,2625.5,3.80872]
[1729612492670,0.03569177,2625.8,2625.5,5.48160809]
[1729612492827,0.03569177,2625.8,2625.5,3.80872]
[1729612493714,0.03569177,2625.8,2625.4,5.80521264]
[1729612494063,0.7751,2625.9,2625.4,5.80521264]
[1729612494264,0.03567909,2625.8,2625.4,5.80521264]
[1729612494427,0.03567909,2625.8,2625.5,3.80879]
[1729612494753,0.7751,2625.9,2625.5,3.80879]
[1729612496162,0.7751,2625.9,2625.4,5.80519264]
[1729612496532,4.58337,2625.9,2625.4,1.99628264]
[1729612496736,6.25625809,2625.9,2625.3,6.28131911]
[1729612496935,4.58337,2625.9,2625.3,10.09032911]
[1729612497169,4.58337,2625.9,2625.4,1.67288809]
[1729612497332,4.58337,2625.9,2625.3,10.09032911]
[1729612498069,0.7751,2625.9,2625.4,5.55786874]
[1729612498228,4.58332,2625.9,2625.4,5.55786874]
[1729612498427,4.58332,2625.9,2625.4,3.88498065]
[1729612498640,4.58332,2625.9,2625.4,3.80881]
[1729612499382,0.7751,2625.9,2625.4,3.80881]
[1729612499551,0.7751,2625.9,2625.4,3.88498066]
[1729612499732,0.7751,2625.9,2625.4,3.80881]
[1729612499938,0.7751,2625.9,2625.4,3.88498067]
[1729612500134,0.7751,2625.9,2625.5,0.55]
[1729612500439,5.48130809,2625.8,2625.2,0.79935102]
[1729612500666,3.80842,2625.8,2625.3,0.55]
[1729612500976,3.80842,2625.8,2625.3,2.22288809]
[1729612501186,5.48130809,2625.8,2625.3,0.55]
[1729612501339,0.806,2625.7,2625.3,0.55]
[1729612502825,0.806,2625.7,2625.1,0.79935102]
[1729612502826,5.48166809,2625.6,2625.1,0.79935102]
[1729612502940,5.48192809,2625.4,2625.0,20.52935102]
[1729612503142,6.28767809,2625.5,2625.0,19.73]
[1729612503347,3.80898,2625.4,2625.0,19.73]
[1729612503838,5.48186809,2625.4,2625.0,19.73]
[1729612504065,0.8041,2625.3,2625.0,19.73]
[1729612504263,4.61321,2625.3,2625.0,19.73]
[1729612505598,3.80955,2625.0,2624.7,0.79935102]
[1729612505882,6.23759809,2624.9,2624.4,0.79935102]
[1729612506043,4.56471,2624.9,2624.4,2.47223911]
[1729612506384,4.56471,2624.9,2624.5,0.79935102]
[1729612506614,4.56471,2624.9,2624.4,6.28261911]
[1729612506776,0.7549,2624.9,2624.6,1.67288809]
[1729612506978,0.7503,2625.1,2624.7,5.48276809]
[1729612507203,5.48198809,2625.3,2624.7,5.48276809]
[1729612507204,0.7503,2625.3,2624.9,3.80958]
[1729612507518,6.23228809,2625.3,2624.8,4.60916102]
[1729612507673,6.23228809,2625.3,2624.9,3.80966]
[1729612507674,2.42318809,2625.3,2624.9,3.80966]
[1729612507879,2.42318809,2625.3,2624.8,8.41889102]
[1729612508202,0.7503,2625.3,2624.8,4.60908102]
[1729612508600,0.7503,2625.3,2624.9,0.79935102]
[1729612508820,0.7503,2625.3,2624.8,4.60908102]
[1729612508972,0.7503,2625.3,2624.9,3.80965]
[1729612509177,0.7813,2625.6,2625.1,5.48223809]
[1729612509520,5.48168809,2625.5,2625.0,4.60881102]
[1729612509829,1.67288809,2625.5,2625.0,3.80946]
[1729612509976,0.7813,2625.6,2625.1,3.80936]
[1729612510172,1.67288809,2625.5,2625.0,4.60886102]
[1729612510633,6.26294809,2625.6,2625.0,4.60886102]
[1729612510790,6.26294809,2625.6,2625.0,3.96643208]
[1729612511113,6.26294809,2625.6,2625.1,4.3593]
[1729612511114,2.45418809,2625.6,2625.1,4.3593]
[1729612511415,2.45418809,2625.6,2625.1,8.16859]
[1729612511717,2.45418809,2625.6,2625.1,4.35929]
[1729612512020,2.45418809,2625.6,2625.2,3.8092]
[1729612512178,1.67288809,2625.5,2625.1,4.35936]
[1729612512513,2.45418809,2625.6,2625.1,4.75430135]
[1729612512684,2.45418809,2625.6,2625.2,3.80922]
[1729612512888,0.7813,2625.6,2625.2,3.80922]
[1729612513420,0.7813,2625.6,2625.2,7.61838]
[1729612513617,0.7813,2625.6,2625.2,8.84191646]
[1729612513821,0.7813,2625.6,2625.2,5.03269646]
[1729612516528,0.7813,2625.6,2625.2,5.03268646]
[1729612517397,2.45418809,2625.6,2625.2,5.03268646]
[1729612518190,0.7813,2625.6,2625.2,5.03268646]
[1729612518930,6.26294809,2625.6,2625.1,0.94494135]
[1729612519425,6.26294809,2625.6,2625.0,4.60750808]
[1729612520495,6.26294809,2625.6,2625.0,8.41694808]
[1729612521523,0.7813,2625.6,2625.1,3.80932]
[1729612522034,2.45418809,2625.6,2625.1,3.80932]
[1729612522218,2.45418809,2625.6,2625.0,4.60750808]
[1729612522410,0.7813,2625.6,2625.3,3.80897]
[1729612522609,0.7813,2625.6,2625.4,5.48181809]
[1729612522795,0.7813,2625.6,2625.4,3.80893]
[1729612523733,0.7813,2625.6,2625.3,4.60714808]
[1729612524033,0.7813,2625.6,2625.4,1.12863883]
[1729612524239,0.7813,2625.6,2625.4,4.93751883]
[1729612524740,0.7813,2625.6,2625.4,1.12863883]
[1729612525035,0.7813,2625.6,2625.4,4.93755883]
[1729612525202,2.45418809,2625.6,2625.2,0.79808808]
[1729612525408,2.45418809,2625.6,2625.2,4.60730808]
[1729612525639,0.7682,2625.8,2625.3,3.80901]
[1729612525934,2.44108809,2625.8,2625.4,3.80884]
[1729612527499,0.7682,2625.8,2625.4,3.80884]
[1729612527703,2.44108809,2625.8,2625.4,3.80884]
[1729612528033,2.44108809,2625.8,2625.4,7.61772]
[1729612528202,2.44108809,2625.8,2625.4,3.80884]
[1729612528705,0.7682,2625.8,2625.4,7.6177]
[1729612528919,0.7682,2625.8,2625.4,3.80884]
[1729612530029,0.7682,2625.8,2625.3,0.79808808]
[1729612530030,0.7682,2625.8,2625.3,4.60711808]
[1729612530430,2.44108809,2625.8,2625.3,4.60711808]
[1729612533799,0.7682,2625.8,2625.3,4.60711808]
[1729612534545,0.7682,2625.8,2625.4,0.79808808]
[1729612534841,0.7682,2625.8,2625.4,4.60698808]
[1729612535152,0.7682,2625.8,2625.3,4.60711808]
[1729612535304,0.7682,2625.8,2625.4,0.79808808]
[1729612535505,0.7682,2625.8,2625.4,4.60696808]
[1729612536736,0.7682,2625.8,2625.4,3.80888]
[1729612536954,0.7682,2625.8,2625.4,4.60696808]
[1729612537741,0.7682,2625.8,2625.4,3.80888]
[1729612538053,0.7682,2625.8,2625.4,4.60696808]
[1729612538442,0.7682,2625.8,2625.4,3.80888]
[1729612539659,0.7682,2625.8,2625.4,3.80887]
[1729612540442,0.7682,2625.8,2625.4,7.61775]
[1729612540615,0.7682,2625.8,2625.4,3.80887]
[1729612542359,0.7682,2625.8,2625.4,7.61773]
[1729612542555,0.7682,2625.8,2625.5,3.80868]
[1729612542765,0.7682,2625.8,2625.4,9.27477694]
[1729612543054,0.7682,2625.8,2625.4,5.46591694]
[1729612545436,0.7682,2625.8,2625.4,9.27477694]
[1729612545865,0.7682,2625.8,2625.4,5.46591694]
[1729612547373,0.7682,2625.8,2625.4,3.80885]
[1729612547736,0.7682,2625.8,2625.3,0.79808808]
[1729612548031,5.48168809,2625.5,2625.2,0.79808808]
[1729612548236,0.8084,2625.4,2625.0,0.79808808]
[1729612549335,0.8084,2625.4,2625.0,4.60754808]
[1729612549755,0.8084,2625.4,2625.1,0.79808808]
[1729612550275,0.8084,2625.4,2625.2,3.80917]
[1729612550484,0.8084,2625.4,2625.2,3.80915]
[1729612550778,0.8084,2625.4,2625.1,6.28026617]
[1729612550935,1.68288809,2626.4,2625.4,3.80887]
[1729612550936,0.7659,2625.6,2625.4,3.80887]
[1729612552145,0.7659,2625.6,2625.4,7.61773]
[1729612552477,0.7659,2625.6,2625.4,4.60694808]
[1729612553839,0.7659,2625.6,2625.5,3.80879]
[1729612554045,0.7659,2625.6,2625.4,4.60699808]
[1729612554272,0.7659,2625.6,2625.4,5.89522753]
[1729612556281,0.7659,2625.6,2625.4,4.60699808]
[1729612557585,0.7659,2625.6,2625.5,0.79808808]
[1729612558687,0.7567,2625.9,2625.5,0.79808808]
[1729612558890,0.7567,2626.5,2626.0,3.808]
[1729612559061,0.7567,2626.5,2626.1,0.3808]
[1729612559276,0.7567,2626.5,2626.1,6.27887617]
[1729612559818,0.7567,2626.5,2626.2,4.60579808]
[1729612560105,4.56405,2626.5,2626.1,0.79808808]
[1729612560314,3.80744,2626.5,2626.0,0.79808808]
[1729612560464,1.67288809,2626.1,2625.8,0.79808808]
[1729612560669,2.42958809,2626.2,2625.8,0.79808808]
[1729612560897,0.7567,2626.2,2625.8,0.79808808]
[1729612561306,4.56455,2626.2,2625.8,0.79808808]
[1729612561472,0.7567,2626.0,2625.6,0.79808808]
[1729612561805,0.7567,2626.0,2625.6,6.27961617]
[1729612562000,0.7567,2626.0,2625.7,0.79808808]
[1729612562703,6.23771809,2626.0,2625.7,0.79808808]
[1729612562986,6.23771809,2626.0,2625.5,4.19713213]
[1729612562987,1.76127081,2626.0,2625.6,0.79808808]
[1729612563896,5.56935081,2626.0,2625.6,0.79808808]
[1729612564202,4.56492,2625.9,2625.5,0.79808808]
[1729612564420,0.7567,2625.9,2625.5,0.79808808]
[1729612565808,0.7567,2625.9,2625.5,2.47097617]
[1729612565997,0.7567,2625.9,2625.7,1.67288809]
[1729612566202,0.7567,2625.9,2625.6,2.47097617]
[1729612566528,0.7567,2625.9,2625.7,0.79808808]
[1729612568553,0.7567,2625.9,2625.6,0.79808808]
[1729612569018,0.7567,2625.9,2625.6,2.47097617]
[1729612569221,0.7567,2625.9,2625.6,0.79808808]
[1729612570011,0.7567,2625.9,2625.6,2.47097617]
[1729612570255,0.7567,2625.9,2625.6,0.79808808]
[1729612570710,1.38045181,2625.9,2625.6,0.79808808]
[1729612570919,4.56655,2625.6,2625.4,1.99522021]
[1729612571145,0.7579,2625.6,2625.2,0.79808808]
[1729612571456,0.7579,2625.6,2625.3,0.79808808]
[1729612571749,0.7579,2625.6,2625.2,0.79808808]
[1729612571952,0.7579,2625.6,2625.3,0.79808808]